bitfinex/quotes_ETHUSD_20241207
["timestamp","ask_amount","ask_price","bid_price","bid_amount"]
[1733606759121,4.50645157,4020.6,4020.5,1.0696153]
[1733606760320,3.95466664,4020.6,4020.5,1.0696153]
[1733606761125,3.95474355,4020.6,4020.5,1.0696153]
[1733606761426,3.95474355,4020.6,4019.3,4.56370658]
[1733606761427,3.95474355,4020.6,4020.2,1.0696153]
[1733606761612,0.7585,4020.6,4020.2,1.0696153]
[1733606761786,0.7585,4020.4,4019.3,0.12436829]
[1733606762120,0.7585,4020.2,4020.1,1.0696153]
[1733606762326,1.62011905,4020.2,4020.1,1.0696153]
[1733606764225,1.62011016,4020.2,4020.1,1.0696153]
[1733606764830,0.7585,4020.2,4020.1,1.0696153]
[1733606765347,1.62007395,4020.2,4020.1,1.0696153]
[1733606765505,3.95439885,4020.2,4020.1,1.0696153]
[1733606765705,4.50613333,4020.2,4020.1,1.0696153]
[1733606766047,0.8074,4020.1,4018.8,1.56396396]
[1733606766199,0.8074,4020.1,4019.4,1.0696153]
[1733606766200,0.8074,4019.5,4019.4,1.0696153]
[1733606766402,4.00293426,4019.5,4019.4,1.0696153]
[1733606767644,2.96133488,4019.5,4019.4,1.0696153]
[1733606768244,1.66897395,4019.5,4019.4,1.0696153]
[1733606768447,1.66776552,4019.5,4019.4,1.0696153]
[1733606768834,0.8074,4019.5,4019.4,1.0696153]
[1733606769026,1.66770003,4019.5,4019.4,1.0696153]
[1733606769408,0.8074,4019.5,4019.4,1.0696153]
[1733606769759,1.85233265,4019.5,4018.8,1.0696153]
[1733606769927,1.85233265,4019.5,4018.2,2.414585]
[1733606769928,3.19157649,4019.4,4019.1,1.0696153]
[1733606770126,0.86003271,4019.3,4019.1,1.0696153]
[1733606770437,0.99229994,4019.5,4019.1,1.0696153]
[1733606770438,2.03389932,4019.5,4019.1,1.0696153]
[1733606770738,0.85971112,4019.4,4019.1,1.0696153]
[1733606770922,0.99229994,4019.5,4019.1,1.0696153]
[1733606772714,0.8074,4019.5,4019.1,1.0696153]
[1733606774266,0.8074,4019.5,4019.0,1.0696153]
[1733606777235,0.8074,4019.5,4018.3,3.12206955]
[1733606777236,0.8074,4019.5,4018.9,1.0696153]
[1733606777423,1.74148,4019.6,4018.2,2.414585]
[1733606777424,0.7989,4019.2,4018.2,2.414585]
[1733606777632,0.7989,4019.0,4018.4,1.0696153]
[1733606778880,0.7989,4019.0,4018.2,2.414585]
[1733606778881,0.7989,4019.0,4018.3,1.0696153]
[1733606779183,0.7989,4018.9,4018.3,1.0696153]
[1733606779358,0.7989,4018.9,4018.4,0.02339621]
[1733606779547,0.7989,4018.9,4018.3,1.0696153]
[1733606779742,0.7989,4018.7,4018.5,0.02339621]
[1733606779944,0.7989,4018.7,4018.3,1.0696153]
[1733606780191,0.7989,4018.7,4018.2,2.414585]
[1733606780341,0.7989,4018.7,4018.3,1.0696153]
[1733606780680,0.7989,4018.7,4018.3,1.09301151]
[1733606781178,0.7989,4019.3,4018.6,1.0696153]
[1733606781384,1.13855338,4019.3,4018.6,1.0696153]
[1733606783284,1.13855338,4019.3,4018.2,2.414585]
[1733606783285,1.13855338,4019.3,4018.9,1.0696153]
[1733606783648,1.13855338,4019.3,4018.6,1.0696153]
[1733606783989,0.7989,4019.0,4018.7,0.02287226]
[1733606784283,0.7989,4019.0,4018.3,1.0696153]
[1733606784586,1.08692634,4019.0,4018.8,0.02285299]
[1733606784783,1.08692634,4019.0,4018.4,0.02285299]
[1733606785886,0.28802634,4019.0,4018.4,0.02285299]
[1733606786085,0.812,4018.9,4018.3,1.0696153]
[1733606786250,2.55377,4018.9,4018.5,0.02285299]
[1733606786460,2.55377,4018.9,4018.2,3.4842003]
[1733606786899,2.55377,4018.9,4018.3,0.02285299]
[1733606788199,0.812,4018.9,4018.3,0.02285299]
[1733606789007,0.812,4018.9,4018.5,1.0696153]
[1733606789568,0.812,4018.9,4018.6,0.02339255]
[1733606789895,0.812,4018.9,4018.8,1.0696153]
[1733606790603,0.812,4018.9,4018.8,1.09300785]
[1733606792192,0.812,4018.9,4018.8,0.02339255]
[1733606792385,0.812,4018.9,4018.5,1.0696153]
[1733606792902,0.812,4018.9,4018.6,0.02333474]
[1733606794431,1.0859405,4018.9,4018.6,0.02333474]
[1733606794600,0.812,4018.9,4018.6,0.02333474]
[1733606800837,0.812,4018.9,4018.8,1.0696153]
[1733606801132,0.8115,4019.2,4018.8,1.0696153]
[1733606801295,0.8115,4019.2,4018.8,1.09291147]
[1733606802351,1.17071435,4019.2,4018.8,1.0696153]
[1733606802508,1.17071435,4019.2,4018.5,1.0696153]
[1733606802842,0.8115,4019.2,4018.5,1.0696153]
[1733606804212,1.74172,4019.0,4018.2,2.414585]
[1733606804538,0.8115,4018.9,4018.2,3.4842003]
[1733606804700,0.8115,4018.9,4018.3,0.0224798]
[1733606804900,1.066822,4018.9,4018.3,0.0224798]
[1733606807111,0.18621957,4018.8,4018.3,1.0920951]
[1733606807317,1.066822,4018.9,4018.3,1.0920951]
[1733606807504,0.18627667,4018.8,4018.3,1.0920951]
[1733606807705,0.29948287,4018.7,4018.3,1.0920951]
[1733606809242,0.8115,4018.9,4018.3,1.0920951]
[1733606809543,0.7915,4018.7,4018.3,0.0224798]
[1733606809844,0.7915,4018.7,4018.2,2.414585]
[1733606810046,0.18625322,4018.6,4018.2,2.414585]
[1733606810212,0.7915,4018.7,4018.2,2.414585]
[1733606810524,0.18622369,4018.6,4018.3,0.0217581]
[1733606810726,1.07462826,4018.7,4018.3,0.0217581]
[1733606810943,0.18622469,4018.6,4018.2,2.414585]
[1733606811152,1.07462826,4018.7,4018.4,0.0217581]
[1733606811453,0.18619867,4018.6,4018.5,0.0217581]
[1733606811950,0.18619867,4018.6,4018.2,2.414585]
[1733606812247,1.07462826,4018.7,4018.2,2.414585]
[1733606812434,0.18619744,4018.6,4018.3,0.0217581]
[1733606812675,1.04131716,4018.4,4018.2,2.414585]
[1733606813338,1.04131716,4018.4,4018.2,3.4842003]
[1733606814020,1.04131716,4018.4,4018.3,0.0220665]
[1733606814427,1.04131716,4018.4,4018.2,3.4842003]
[1733606817015,0.86103912,4018.5,4018.2,3.4842003]
[1733606817362,0.1861034,4018.4,4018.2,3.4842003]
[1733606817654,3.71454622,4018.3,4018.2,2.44714913]
[1733606817835,2.15257048,4018.3,4018.2,2.44714913]
[1733606818013,0.86103912,4018.3,4018.2,2.44714913]
[1733606818214,0.8611025,4018.3,4018.2,2.44714913]
[1733606818421,0.86115059,4018.3,4018.2,2.44714913]
[1733606819763,1.04137076,4018.5,4018.2,2.44714913]
[1733606819921,0.86135083,4018.4,4018.2,2.44714913]
[1733606820216,0.86135083,4018.3,4018.2,2.44714913]
[1733606820418,0.86135083,4018.3,4018.2,2.57303012]
[1733606821362,0.86135083,4018.3,4018.2,1.37753383]
[1733606821545,0.86135083,4018.3,4018.2,2.44714913]
[1733606824871,0.86173136,4018.3,4018.2,2.44714913]
[1733606825244,1.04137076,4018.5,4018.2,5.7042496]
[1733606825439,1.56197574,4018.7,4018.2,2.44714913]
[1733606825440,1.04137076,4018.7,4018.2,2.44714913]
[1733606825662,1.04137076,4018.7,4018.2,1.37753383]
[1733606825663,2.1545056,4018.6,4018.2,1.37753383]
[1733606825869,1.04137076,4018.7,4018.2,1.37753383]
[1733606826068,0.86181833,4018.6,4018.2,1.37753383]
[1733606826270,1.04137076,4018.7,4018.2,1.37753383]
[1733606826580,1.04137076,4018.9,4018.6,1.0696153]
[1733606826873,2.15471082,4018.8,4018.6,1.0696153]
[1733606827036,0.86188433,4018.7,4018.6,1.0696153]
[1733606827238,2.15474448,4018.7,4018.6,1.0696153]
[1733606827721,2.15476147,4018.7,4018.6,1.0696153]
[1733606828078,0.86188433,4018.7,4018.6,1.0696153]
[1733606829576,0.86190678,4018.7,4018.6,1.0696153]
[1733606832967,0.86190678,4018.7,4018.2,1.37753383]
[1733606833309,1.04137076,4018.8,4018.6,1.0696153]
[1733606833604,0.86204053,4018.7,4018.6,1.0696153]
[1733606833816,3.19637839,4018.7,4018.6,1.0696153]
[1733606834415,1.3611,4018.6,4018.2,1.37753383]
[1733606834568,2.15484105,4018.5,4018.2,1.37753383]
[1733606834769,1.3611,4018.6,4018.2,1.37753383]
[1733606835002,0.55,4018.4,4018.2,1.37753383]
[1733606835409,1.59137076,4018.5,4018.2,1.37753383]
[1733606835709,0.55,4018.3,4018.2,1.37753383]
[1733606837275,0.55,4018.5,4018.2,1.37753383]
[1733606837474,0.55,4018.5,4018.4,1.0696153]
[1733606837675,2.70555907,4018.5,4018.4,1.0696153]
[1733606837980,1.41221956,4018.5,4018.4,1.0696153]
[1733606838196,3.23580144,4018.5,4018.4,1.0696153]
[1733606838701,4.2771722,4018.5,4018.4,1.0696153]
[1733606838905,3.23580144,4018.5,4018.4,1.0696153]
[1733606840685,3.26060144,4018.5,4018.4,1.0696153]
[1733606842092,4.3019722,4018.5,4018.4,1.0696153]
[1733606842296,3.26060144,4018.5,4018.4,1.0696153]
[1733606846718,4.3019722,4018.5,4018.4,1.0696153]
[1733606846935,4.82257718,4018.5,4018.4,1.0696153]
[1733606847106,7.06808891,4018.5,4018.4,1.0696153]
[1733606847619,7.06808891,4018.5,4018.2,1.37753383]
[1733606847620,0.8321,4018.4,4018.2,1.37753383]
[1733606847821,5.39124047,4018.3,4018.2,1.37753383]
[1733606848003,6.24814047,4018.3,4018.2,1.37753383]
[1733606848183,8.85514334,4018.3,4018.2,1.37753383]
[1733606848388,6.24798031,4018.3,4018.2,1.37753383]
[1733606848697,7.99001031,4018.3,4018.2,1.37753383]
[1733606848900,10.59668138,4018.3,4018.2,1.37753383]
[1733606849423,7.99001031,4018.3,4018.2,1.37753383]
[1733606849626,8.28786924,4018.3,4018.2,1.37753383]
[1733606849797,7.99001031,4018.3,4018.2,1.37753383]
[1733606850631,10.59552476,4018.3,4018.2,1.37753383]
[1733606851196,10.40926151,4018.3,4018.2,1.37753383]
[1733606851399,10.59532737,4018.3,4018.2,1.37753383]
[1733606853889,10.59529614,4018.3,4018.2,1.37753383]
[1733606854291,7.98978169,4018.3,4018.2,1.37753383]
[1733606854703,10.59529614,4018.3,4018.2,1.37753383]
[1733606855118,7.98978169,4018.3,4018.2,1.37753383]
[1733606857294,7.98969525,4018.3,4018.2,1.37753383]
[1733606857779,7.98969525,4018.3,4018.2,0.34033962]
[1733606858228,7.98799679,4018.3,4018.2,0.34033962]
[1733606861639,10.07095902,4018.3,4018.2,0.34033962]
[1733606862346,7.98799679,4018.3,4018.2,0.34033962]
[1733606862847,5.83430412,4018.3,4018.2,0.34033962]
[1733606863053,7.98701507,4018.3,4018.2,0.34033962]
[1733606863354,10.0697528,4018.3,4018.2,0.34033962]
[1733606865312,0.55,4017.8,4016.9,1.0696153]
[1733606865513,0.55,4018.1,4016.9,1.0696153]
[1733606865514,3.08314,4017.6,4016.9,1.0696153]
[1733606865709,3.19377668,4017.5,4016.9,1.0696153]
[1733606865954,2.15221653,4017.4,4016.9,1.0696153]
[1733606866178,0.86076023,4017.3,4016.9,1.0696153]
[1733606866320,0.81108209,4017.4,4016.9,1.0696153]
[1733606866521,2.15159289,4017.3,4016.5,1.0696153]
[1733606866835,3.19258397,4017.2,4016.5,1.0696153]
[1733606867014,2.15151824,4017.1,4016.5,1.0696153]
[1733606867214,2.15144719,4017.0,4016.5,1.0696153]
[1733606867452,0.0248,4017.0,4016.5,1.0696153]
[1733606868314,0.54087643,4017.0,4016.5,1.0696153]
[1733606869110,0.85985041,4016.9,4015.0,0.32054803]
[1733606869379,0.85985041,4016.9,4014.8,1.56338828]
[1733606869380,3.74059244,4016.8,4016.2,1.0696153]
[1733606869582,2.14952671,4016.7,4016.2,1.0696153]
[1733606869795,1.41065465,4016.6,4016.2,1.0696153]
[1733606870093,0.57560424,4016.6,4016.2,1.0696153]
[1733606871486,0.0248,4016.6,4016.2,1.0696153]
[1733606876489,0.0248,4016.6,4016.0,0.12757205]
[1733606876700,0.0248,4016.6,4016.3,1.0696153]
[1733606877199,0.0248,4016.6,4016.4,0.02330345]
[1733606877795,0.0248,4016.6,4016.2,1.0696153]
[1733606877996,0.0248,4016.6,4016.5,0.02252666]
[1733606878197,0.256543,4016.6,4016.2,1.0696153]
[1733606878355,0.256543,4016.6,4016.5,0.02252666]
[1733606878560,0.256543,4016.6,4016.2,1.0696153]
[1733606878774,0.256543,4016.6,4015.7,1.12432222]
[1733606878775,0.256543,4016.6,4016.5,0.02252666]
[1733606878998,0.256543,4016.6,4016.1,1.0696153]
[1733606878999,1.008243,4016.6,4016.1,1.0696153]
[1733606879161,0.1999243,4016.5,4016.1,1.0696153]
[1733606879359,0.1999243,4016.5,4016.2,0.02252666]
[1733606881805,1.74289,4016.3,4016.2,0.02252666]
[1733606881965,2.31769,4016.3,4016.2,0.02252666]
[1733606882166,2.64462143,4016.3,4015.7,0.996242]
[1733606882408,0.7517,4016.2,4015.7,0.996242]
[1733606882577,2.29298,4016.1,4015.6,1.0696153]
[1733606884194,0.55,4016.1,4015.6,1.0696153]
[1733606886477,0.0248,4016.2,4015.9,1.0696153]
[1733606887782,0.55,4016.0,4015.3,1.0696153]
[1733606887979,0.13671,4015.9,4015.3,1.0696153]
[1733606888223,0.7923,4015.8,4013.8,0.32054803]
[1733606888519,0.7923,4015.8,4015.1,1.8619153]
[1733606889238,0.7923,4015.8,4014.0,1.0696153]
[1733606889239,0.55,4015.7,4015.0,1.0696153]
[1733606889513,0.5748,4015.7,4015.0,1.0696153]
[1733606889689,0.324693,4015.6,4015.0,1.0696153]
[1733606889890,0.324693,4015.6,4015.1,0.02228901]
[1733606891217,1.61053908,4015.6,4015.1,0.02228901]
[1733606891392,0.324693,4015.6,4015.1,0.02228901]
[1733606891711,0.8571085,4015.5,4015.0,1.0696153]
[1733606891919,1.61037282,4015.6,4015.0,1.0696153]
[1733606892089,0.324693,4015.6,4015.0,1.0696153]
[1733606892813,0.1691793,4015.5,4014.9,0.996524]
[1733606892979,0.1691793,4015.5,4015.1,1.0696153]
[1733606893683,0.0248,4015.7,4015.1,1.0696153]
[1733606894027,0.0248,4015.5,4015.1,1.0696153]
[1733606895110,0.0248,4015.5,4015.2,0.02228901]
[1733606897217,0.7782,4015.4,4015.2,0.02228901]
[1733606900386,0.7782,4015.4,4014.9,0.996524]
[1733606900588,0.7782,4015.4,4015.3,0.02253981]
[1733606900831,0.7782,4015.4,4014.9,0.996524]
[1733606901013,0.7782,4015.4,4015.3,0.02253981]
[1733606901188,0.7782,4015.4,4014.7,0.1249197]
[1733606901392,0.7782,4015.4,4015.3,0.02253981]
[1733606901726,0.7782,4015.4,4014.8,1.0696153]
[1733606901727,1.032821,4015.4,4014.8,1.0696153]
[1733606901923,1.032821,4015.4,4015.3,0.02178848]
[1733606902117,1.032821,4015.4,4014.7,0.99659]
[1733606902292,1.032821,4015.4,4015.3,0.02178848]
[1733606902492,1.032821,4015.4,4014.7,2.0662053]
[1733606902703,0.2800871,4015.3,4014.8,0.02178848]
[1733606903331,0.2800871,4015.3,4014.9,0.02178848]
[1733606903541,0.2800871,4015.3,4015.0,1.0696153]
[1733606903834,0.7782,4015.2,4014.8,1.0696153]
[1733606903990,0.7782,4015.2,4015.1,0.02178848]
[1733606904186,0.7782,4015.2,4014.8,1.0696153]
[1733606904390,0.7782,4015.2,4015.1,0.02178848]
[1733606904617,0.7782,4015.2,4014.8,1.0696153]
[1733606904819,0.7782,4015.2,4015.1,0.02178848]
[1733606905025,0.7782,4015.2,4014.8,1.0696153]
[1733606905235,0.0248,4015.2,4015.1,0.02178848]
[1733606905831,0.0248,4015.2,4015.1,1.0696153]
[1733606905995,0.0248,4015.2,4015.1,1.09140378]
[1733606908110,0.0248,4015.2,4015.1,1.0696153]
[1733606914838,1.43447841,4015.2,4015.1,1.0696153]
[1733606915173,3.76499165,4015.2,4015.1,1.0696153]
[1733606915552,2.91001039,4015.2,4015.1,1.0696153]
[1733606916571,3.94952591,4015.2,4015.1,1.0696153]
[1733606916775,2.91001039,4015.2,4015.1,1.0696153]
[1733606917163,3.94952229,4015.2,4015.1,1.0696153]
[1733606918103,3.76343782,4015.2,4015.1,1.0696153]
[1733606918232,2.72392592,4015.2,4015.1,1.0696153]
[1733606918679,3.76343782,4015.2,4015.1,1.0696153]
[1733606918876,3.94962654,4015.2,4015.1,1.0696153]
[1733606919037,3.94972837,4015.2,4015.1,1.0696153]
[1733606919872,3.76353965,4015.2,4015.1,1.0696153]
[1733606920076,4.29605348,4015.2,4014.7,0.7782]
[1733606920370,0.8596911,4015.1,4014.7,1.8478153]
[1733606920578,2.14682573,4015.2,4014.7,0.7782]
[1733606920740,2.52034601,4015.1,4014.7,0.7782]
[1733606920942,0.85980021,4015.0,4014.7,0.7782]
[1733606921275,0.0248,4015.0,4014.7,0.7782]
[1733606921437,0.0248,4015.0,4014.8,1.0696153]
[1733606922772,0.0248,4015.0,4014.7,1.8478153]
[1733606923388,0.5748,4015.0,4014.7,1.8478153]
[1733606924696,0.55,4014.8,4014.7,0.7782]
[1733606924979,0.5748,4014.8,4014.4,1.0696153]
[1733606925175,0.0248,4014.8,4014.5,0.996652]
[1733606927628,0.0248,4014.8,4014.7,1.0696153]
[1733606933444,2.17984844,4014.8,4014.7,1.0696153]
[1733606933946,0.0248,4014.8,4014.7,2.8132053]
[1733606934153,2.18011776,4014.8,4014.7,2.8132053]
[1733606934646,2.18011776,4014.8,4014.7,1.0696153]
[1733606935809,2.18011776,4014.8,4014.3,1.86812788]
[1733606936054,3.19788628,4014.7,4014.6,1.0696153]
[1733606936706,3.22268628,4014.7,4014.6,1.0696153]
[1733606937515,2.18011776,4014.7,4014.6,1.0696153]
[1733606938021,3.22268628,4014.7,4014.5,1.0696153]
[1733606938226,2.15493023,4014.6,4014.5,1.0696153]
[1733606938430,2.15493023,4014.6,4014.1,0.12474301]
[1733606938611,0.8621271,4014.5,4014.3,1.0696153]
[1733606938812,0.0248,4014.5,4014.3,1.0696153]
[1733606939524,0.0248,4014.5,4014.0,1.74389]
[1733606939728,0.0248,4014.5,4014.4,1.0696153]
[1733606939929,0.88655182,4014.5,4014.4,1.0696153]
[1733606942360,0.0248,4014.5,4014.4,1.0696153]
[1733606943927,0.0248,4014.5,4014.1,1.74384]
[1733606944129,0.0248,4014.5,4013.9,0.12570846]
[1733606944130,0.0248,4014.5,4014.2,3.0]
[1733606944363,0.18653685,4014.5,4013.7,0.996654]
[1733606944562,0.7715,4014.4,4013.9,1.0696153]
[1733606945242,0.55,4014.3,4014.0,1.0696153]
[1733606945585,0.5748,4014.3,4014.0,1.0696153]
[1733606946146,0.0248,4014.3,4014.0,1.0696153]
[1733606950585,0.0248,4014.3,4014.0,1.36362869]
[1733606950755,0.0248,4014.3,4014.2,1.7438]
[1733606952758,0.0248,4014.3,4014.0,1.0696153]
[1733606952964,0.0248,4014.3,4014.1,1.74385]
[1733606953867,0.0248,4014.3,4014.0,2.1392306]
[1733606954073,0.0248,4014.3,4014.2,1.7438]
[1733606956048,0.0248,4014.3,4014.0,2.8135053]
[1733606956570,0.0248,4014.3,4013.8,1.87050864]
[1733606956793,0.0248,4014.3,4014.2,1.0696153]
[1733606963461,0.88688178,4014.3,4014.2,1.0696153]
[1733606964405,1.13482777,4014.3,4013.8,0.12240638]
[1733606964699,1.13482777,4014.3,4013.8,1.0696153]
[1733606964700,1.63418178,4014.2,4013.8,1.0696153]
[1733606965003,0.7969,4014.2,4013.8,1.0696153]
[1733606965598,0.7969,4014.2,4014.1,1.0696153]
[1733606965771,2.95196598,4014.2,4014.1,1.0696153]
[1733606965966,1.65892526,4014.2,4014.1,1.0696153]
[1733606966173,0.7969,4014.2,4014.1,1.0696153]
[1733606968896,0.0248,4014.2,4014.1,1.0696153]
[1733606978067,0.88702847,4014.2,4014.1,1.0696153]
[1733606978275,0.0248,4014.2,4014.1,1.0696153]
[1733606980885,0.88709694,4014.2,4014.1,1.0696153]
[1733606981306,0.0248,4014.2,4014.1,1.0696153]
[1733606982120,0.88707736,4014.2,4013.6,3.0]
[1733606982331,1.68537736,4014.1,4013.7,1.0696153]
[1733606982512,0.8231,4014.1,4013.7,1.0696153]
[1733606984033,0.86200301,4014.0,4013.7,1.0696153]
[1733606984340,0.0248,4014.0,4013.7,1.0696153]
[1733606986737,0.0248,4014.0,4013.5,1.74411]
[1733606986914,0.0248,4014.0,4013.1,1.56757621]
[1733606986915,0.5748,4014.0,4013.4,3.0]
[1733606987110,0.5748,4014.0,4013.1,5.741112]
[1733606987111,0.86182381,4013.9,4013.1,5.741112]
[1733606987313,0.805,4013.9,4013.5,1.0696153]
[1733606987513,0.8616832,4013.8,4013.5,1.0696153]
[1733606987718,0.0248,4013.8,4013.5,1.0696153]
[1733606988006,0.86163816,4013.7,4013.5,1.0696153]
[1733606988205,0.0248,4013.7,4013.5,1.0696153]
[1733606988937,0.0248,4013.7,4012.9,4.74433]
[1733606989100,0.31254936,4013.7,4013.1,1.0696153]
[1733606989310,0.805,4013.6,4013.1,1.0696153]
[1733606991349,0.805,4013.6,4013.1,4.0696153]
[1733606991750,0.805,4013.6,4013.4,1.0696153]
[1733606998220,0.0248,4013.7,4013.4,1.0696153]
[1733606998221,0.0248,4013.7,4013.6,1.74407]
[1733607002070,0.0248,4013.7,4013.6,1.87155117]
[1733607002481,0.0248,4013.7,4013.6,2.34008482]
[1733607003339,0.0248,4013.7,4013.6,1.74407]
[1733607003561,0.0248,4013.7,4013.6,2.8136853]
[1733607006071,0.0248,4013.7,4013.6,1.74407]
[1733607006269,0.0248,4013.7,4013.6,2.8136853]
[1733607006455,0.0248,4013.7,4013.6,2.94060373]
[1733607007184,1.0423229,4014.4,4013.7,3.0]
[1733607007357,0.7674,4014.7,4014.3,1.0696153]
[1733607007358,1.8097229,4014.7,4014.3,1.0696153]
[1733607007557,1.8097229,4014.7,4014.3,2.8133653]
[1733607007558,0.86091162,4014.6,4014.3,2.8133653]
[1733607007754,1.8097229,4014.7,4014.3,2.8133653]
[1733607007951,0.86091172,4014.6,4014.3,2.8133653]
[1733607008159,1.8097229,4014.7,4014.3,2.8133653]
[1733607008388,0.86094316,4014.6,4014.3,2.8133653]
[1733607008686,1.8097229,4014.7,4014.3,2.8133653]
[1733607008881,0.86096639,4014.6,4014.3,2.8133653]
[1733607009081,0.7674,4014.7,4014.3,2.8133653]
[1733607009248,0.02509284,4014.6,4014.3,2.8133653]
[1733607011863,0.02509284,4014.6,4014.4,1.74371]
[1733607012870,0.02509284,4014.6,4014.5,1.74367]
[1733607013068,0.02509284,4014.6,4014.5,2.02499853]
[1733607017502,0.02509284,4014.6,4014.5,0.02198855]
[1733607017881,0.02509284,4014.6,4014.4,1.0696153]
[1733607018103,0.02509284,4014.6,4014.5,0.02177141]
[1733607021517,0.02509284,4014.6,4014.4,2.8133253]
[1733607030891,0.8203,4014.5,4014.4,1.74371]
[1733607031093,0.02509284,4014.6,4014.4,2.8133253]
[1733607032540,0.02509284,4014.6,4014.4,1.0696153]
[1733607036332,0.02509284,4014.6,4013.9,1.74391]
[1733607036333,0.8203,4014.5,4013.6,4.74407]
[1733607036636,0.8203,4014.5,4014.2,1.0696153]
[1733607044847,0.86131315,4014.4,4014.2,1.0696153]
[1733607045050,0.02509284,4014.4,4014.2,1.0696153]
[1733607051338,0.02509284,4014.4,4014.3,0.03261369]
[1733607051538,2.17968605,4014.4,4014.2,1.0696153]
[1733607051728,0.02509284,4014.4,4014.3,0.02191134]
[1733607052058,2.17991169,4014.4,4014.2,1.0696153]
[1733607052264,0.02509284,4014.4,4014.3,0.02191134]
[1733607052436,2.18021905,4014.4,4014.3,0.02191134]
[1733607052644,2.18021905,4014.4,4014.2,1.0696153]
[1733607052964,0.86205048,4014.3,4014.2,1.0696153]
[1733607053556,0.02509284,4014.4,4014.2,1.0696153]
[1733607054924,0.86205689,4014.3,4014.2,1.0696153]
[1733607055525,0.02509284,4014.4,4014.2,1.0696153]
[1733607058648,0.02509284,4014.4,4014.2,2.8134153]
[1733607058851,0.02509284,4014.4,4014.2,3.30854936]
[1733607060455,0.02509284,4014.4,4014.2,3.43379335]
[1733607061285,0.02509284,4014.4,4014.3,1.74376]
[1733607062284,0.02509284,4014.4,4014.3,2.8133753]
[1733607062806,0.02509284,4014.4,4014.3,3.85677577]
[1733607062968,0.02509284,4014.4,4014.3,4.45139363]
[1733607063191,0.02509284,4014.4,4014.3,3.40799316]
[1733607063488,0.02509284,4014.4,4014.3,4.45139363]
[1733607064687,0.02509284,4014.4,4014.3,3.40799316]
[1733607083378,0.02509284,4014.4,4014.3,2.8133753]
[1733607095466,0.02509284,4014.4,4014.3,1.0696153]
[1733607098143,0.02509284,4014.4,4014.3,2.8133753]
[1733607108900,0.02509284,4014.4,4014.3,3.85897481]
[1733607109102,0.02509284,4014.4,4014.3,2.8133753]
[1733607109508,0.02509284,4014.4,4014.3,4.38171458]
[1733607116602,0.02509284,4014.4,4014.3,2.8133753]
[1733607117019,0.02509284,4014.4,4014.3,4.38171458]
[1733607117330,0.02509284,4014.4,4014.3,2.8133753]
[1733607120505,0.81409284,4014.4,4014.3,1.04562234]
[1733607120696,0.81409284,4014.4,4014.3,2.11523764]
[1733607121132,0.81409284,4014.4,4014.3,1.0696153]
[1733607121651,1.67715418,4014.4,4014.3,1.0696153]
[1733607121823,0.81409284,4014.4,4014.3,1.0696153]
[1733607123156,0.789,4014.3,4013.8,1.04562234]
[1733607123366,2.15728202,4014.2,4014.0,1.0696153]
[1733607123564,0.789,4014.1,4014.0,1.0696153]
[1733607123862,3.13071316,4014.1,4014.0,1.0696153]
[1733607124058,1.83716633,4014.1,4014.0,1.0696153]
[1733607124378,3.13069649,4014.1,4014.0,1.0696153]
[1733607124538,1.83716633,4014.1,4014.0,1.0696153]
[1733607125127,1.83716633,4014.1,4013.4,1.74415]
[1733607125348,0.789,4014.1,4014.0,1.0696153]
[1733607127088,0.8084,4014.1,4013.1,1.04562234]
[1733607127379,0.8084,4013.9,4013.7,1.0696153]
[1733607127674,0.27135062,4013.8,4013.7,1.0696153]
[1733607127836,0.02509284,4013.8,4013.7,1.0696153]
[1733607128037,0.83349284,4013.8,4013.7,1.0696153]
[1733607140284,0.02509284,4013.8,4013.7,1.0696153]
[1733607140881,0.83349284,4013.8,4013.7,1.0696153]
[1733607143735,0.02509284,4013.8,4013.7,1.0696153]
[1733607148910,0.02509284,4013.8,4013.7,2.8136353]
[1733607149134,0.02509284,4013.8,4013.7,3.09499883]
[1733607154188,0.82679284,4013.8,4013.7,1.0696153]
[1733607158760,0.02509284,4013.8,4013.7,1.0696153]
[1733607162884,0.02509284,4013.8,4013.7,2.8136353]
[1733607177948,1.0430328,4014.2,4013.7,3.8832506]
[1733607178243,1.56454921,4014.4,4014.1,1.74385]
[1733607178244,1.0430328,4014.4,4014.1,1.74385]
[1733607178395,1.8448328,4014.7,4014.5,1.74363]
[1733607178731,2.15636675,4014.6,4014.5,1.74363]
[1733607179103,3.19939955,4014.6,4014.5,1.74363]
[1733607179436,2.15636675,4014.6,4014.5,1.74363]
[1733607179940,2.18145959,4014.6,4014.5,1.74363]
[1733607181112,2.18143677,4014.6,4014.5,1.74363]
[1733607182043,0.88763041,4014.6,4014.5,1.74363]
[1733607184741,3.93816819,4014.6,4013.6,1.04475339]
[1733607184942,1.04273922,4014.3,4013.4,1.04475339]
[1733607185101,1.84453922,4014.1,4013.3,1.0696153]
[1733607185301,3.19819904,4014.0,4013.6,1.0696153]
[1733607185502,2.15545982,4013.9,4013.6,1.0696153]
[1733607185737,0.862025,4013.8,4013.6,1.0696153]
[1733607185942,0.02509284,4013.9,4013.6,1.0696153]
[1733607186111,0.86189519,4013.8,4013.6,1.0696153]
[1733607186311,0.02509284,4013.9,4013.6,1.0696153]
[1733607186645,0.86172615,4013.8,4013.6,1.0696153]
[1733607186944,0.02509284,4013.9,4013.6,1.0696153]
[1733607187745,1.68325561,4013.8,4013.3,1.0696153]
[1733607187913,0.8217,4013.8,4013.3,1.0696153]
[1733607197947,0.8217,4013.8,4013.1,3.0]
[1733607198148,0.18895321,4013.7,4013.0,1.74432]
[1733607198441,0.21404605,4013.7,4013.2,1.0696153]
[1733607199168,0.02509284,4013.7,4012.9,3.0]
[1733607199314,0.02509284,4013.7,4013.2,1.0696153]
[1733607201238,0.02509284,4013.7,4013.5,1.0696153]
[1733607210377,0.02509284,4013.7,4012.8,0.996913]
[1733607210549,0.02509284,4013.7,4012.8,3.8109183]
[1733607210550,0.7567,4013.6,4012.8,3.8109183]
[1733607210884,0.93915321,4013.6,4012.8,3.8109183]
[1733607211233,0.93492757,4013.6,4012.8,0.996913]
[1733607211439,0.93492757,4013.6,4012.8,2.0665283]
[1733607213474,0.75247436,4013.6,4013.1,1.0696153]
[1733607216240,0.85951837,4013.5,4013.1,1.0696153]
[1733607216437,0.75247436,4013.6,4013.1,1.0696153]
[1733607220778,0.75247436,4013.6,4013.2,0.02181815]
[1733607222753,2.49654436,4013.6,4013.2,0.02181815]
[1733607222951,0.8102,4013.4,4012.8,2.0665283]
[1733607223261,0.83529284,4013.4,4012.9,0.02246984]
[1733607223663,0.83529284,4013.4,4012.8,0.996913]
[1733607223859,0.83529284,4013.4,4012.9,1.0696153]